bitfinex-derivatives/quotes_SOLF0:USTF0_20260114
["timestamp","ask_amount","ask_price","bid_price","bid_amount"]
[1768421165439,6.1201,147.07,147.0,23.4212505]
[1768421165841,0.04887404,147.05,147.02,0.04874519]
[1768421166840,24.39173417,147.09,147.02,0.04874519]
[1768421167148,24.39173417,147.13,147.02,23.46999569]
[1768421167336,24.39173417,147.13,147.02,23.4212505]
[1768421167741,6.1189,147.1,147.02,23.4212505]
[1768421167944,24.39173417,147.13,147.05,0.04881386]
[1768421168549,24.39173417,147.13,147.05,23.47006436]
[1768421168940,30.50943417,147.13,147.05,23.47006436]
[1768421169646,24.39173417,147.13,147.05,23.47006436]
[1768421170047,24.39173417,147.13,147.05,0.04881386]
[1768421170250,24.39173417,147.09,147.05,0.04881386]
[1768421170446,24.39173417,147.09,146.99,23.4212505]
[1768421171349,24.39173417,147.12,147.02,23.4212505]
[1768421171555,24.39173417,147.12,147.03,23.46852004]
[1768421171757,24.39173417,147.12,147.03,29.5429505]
[1768421171758,30.50973417,147.12,147.03,29.5429505]
[1768421172649,30.50973417,147.12,147.06,0.05229242]
[1768421173051,6.1174,147.14,147.06,0.05229242]
[1768421173249,24.39173417,147.14,147.04,23.4212505]
[1768421173450,30.50993417,147.12,147.04,23.4212505]
[1768421174353,0.04793865,147.09,147.04,23.4212505]
[1768421174751,0.04793865,147.09,146.98,29.04273386]
[1768421175058,24.39173417,147.08,146.94,5.0]
[1768421175355,24.39173417,147.05,147.0,0.04385316]
[1768421175551,24.39173417,147.05,146.93,25.45]
[1768421176054,24.39173417,147.05,146.98,0.05159696]
[1768421176356,30.51273417,147.05,146.98,0.05159696]
[1768421176751,6.1215,147.04,146.98,0.05159696]
[1768421177052,24.39173417,147.05,146.98,0.05159696]
[1768421177251,0.04902729,147.03,146.98,0.05159696]
[1768421178958,24.44076146,147.03,146.98,0.05159696]
[1768421179858,6.1223,147.02,146.98,0.05159696]
[1768421180058,6.1223,147.02,146.95,1.56688439]
[1768421180461,6.1217,147.04,146.95,1.56688439]
[1768421180647,107.4033,147.13,146.96,2.25060966]
[1768421180853,26.50805345,147.09,146.97,2.25060966]
[1768421181157,26.50805345,147.09,147.02,0.04951416]
[1768421181750,115.99603386,147.13,147.02,0.04951416]
[1768421181751,31.63085353,147.08,147.02,0.04951416]
[1768421182162,25.51085353,147.11,147.02,2.53557987]
[1768421182363,25.51085353,147.11,147.02,2.48606571]
[1768421183055,25.51085353,147.14,147.04,2.54158675]
[1768421183359,25.51085353,147.14,147.08,0.05144911]
[1768421183558,31.62815353,147.14,147.08,0.05144911]
[1768421184664,0.048121,147.12,147.04,2.54158675]
[1768421184959,25.55897453,147.12,147.04,2.54158675]
[1768421185358,6.1187,147.11,147.02,80.36]
[1768421185770,0.04744931,147.08,147.05,0.04919042]
[1768421186469,0.04744931,147.08,147.02,80.36]
[1768421187162,0.04744931,147.08,147.01,2.75365122]
[1768421187359,0.04744931,147.08,147.02,80.36]
[1768421187566,0.04744931,147.08,147.03,0.04652401]
[1768421188465,0.04744931,147.08,147.03,3.20979048]
[1768421189463,0.04744931,147.08,147.03,83.56979048]
[1768421189869,25.51085353,147.14,147.04,3.26272348]
[1768421190268,31.62855353,147.13,147.04,3.26272348]
[1768421190660,25.51085353,147.13,147.01,3.36103812]
[1768421190865,0.04861384,147.08,147.01,3.36103812]
[1768421191172,0.04861384,147.08,147.02,80.36]
[1768421191571,25.51085353,147.13,147.03,3.45822353]
[1768421192272,25.51085353,147.13,147.04,3.45822353]
[1768421192670,0.05215494,147.1,147.07,0.04556993]
[1768421195378,0.05215494,147.1,147.05,80.36]
[1768421195675,25.51085353,147.11,147.05,80.36]
[1768421196069,25.51085353,147.18,147.06,3.88149986]
[1768421196474,25.51085353,147.18,147.11,0.04631985]
[1768421197474,282.7261,147.28,147.11,0.04631985]
[1768421197475,25.51085353,147.22,147.12,84.42390785]
[1768421197973,31.62495353,147.22,147.12,84.42390785]
[1768421198377,25.51085353,147.22,147.12,84.42390785]
[1768421198671,31.62565353,147.2,147.11,80.34]
[1768421199382,25.51085353,147.2,147.11,84.54305644]
[1768421199677,25.51085353,147.2,147.14,0.05164341]
[1768421199873,25.51085353,147.23,147.14,0.05164341]
[1768421200073,25.51085353,147.23,147.12,4.29166256]
[1768421200672,25.51085353,147.23,147.16,0.04874961]
[1768421200974,25.51085353,147.21,147.12,4.29166256]
[1768421201175,25.51085353,147.21,147.13,80.34]
[1768421201576,25.51085353,147.2,147.13,80.34]
[1768421201776,0.04520955,147.18,147.15,0.04380041]
[1768421202472,25.51085353,147.26,147.16,4.50387214]
[1768421203078,25.51085353,147.26,147.17,80.34]
[1768421203279,31.62325353,147.26,147.17,80.34]
[1768421203479,31.62325353,147.26,147.2,0.05039597]
[1768421203782,31.62375353,147.25,147.16,4.50387214]
[1768421203981,31.62375353,147.25,147.16,84.84387214]
[1768421204381,31.62375353,147.25,147.13,4.58732731]
[1768421204581,25.51085353,147.23,147.13,84.90732731]
[1768421204783,0.04721123,147.19,147.17,0.05121397]
[1768421204984,0.04721123,147.19,147.1,4.72021104]
[1768421205186,25.51085353,147.21,147.11,80.32]
[1768421205578,25.51085353,147.21,147.11,85.12094274]
[1768421205779,25.51085353,147.21,147.11,4.80094274]
[1768421205980,25.51085353,147.21,147.12,80.32]
[1768421206280,0.04510765,147.17,147.15,0.05040668]
[1768421206677,0.04510765,147.17,147.12,80.32]
[1768421206872,0.04510765,147.17,147.11,4.80094274]
[1768421207085,0.04510765,147.17,147.08,4.88074716]
[1768421207384,25.51085353,147.19,147.09,80.32]
[1768421207583,0.04734429,147.15,147.09,80.32]
[1768421207878,0.04734429,147.15,147.13,0.04682937]
[1768421208880,25.51085353,147.19,147.13,0.04682937]
[1768421209784,0.04449191,147.17,147.13,0.04682937]
[1768421210685,32.6094119,147.22,147.13,0.04682937]
[1768421210880,26.4954119,147.25,147.12,5.29175899]
[1768421211181,26.4954119,147.25,147.13,5.29175899]
[1768421211385,26.4954119,147.25,147.12,5.27952361]
[1768421211386,32.6081119,147.25,147.14,11.48314036]
[1768421211885,0.05026517,147.21,147.18,0.05082243]
[1768421212980,0.05026517,147.21,147.11,5.49068866]
[1768421212981,26.54567707,147.21,147.11,5.49068866]
[1768421213182,32.6103119,147.2,147.11,5.49068866]
[1768421213380,32.6103119,147.2,147.11,85.81068866]
[1768421213982,0.04297814,147.17,147.14,0.04920868]
[1768421214378,6.1141,147.22,147.14,0.04920868]
[1768421214685,32.6095119,147.22,147.12,5.63541312]
[1768421215283,26.4954119,147.22,147.12,5.63541312]
[1768421215485,0.04980644,147.18,147.16,0.05098268]
[1768421215879,26.4954119,147.22,147.16,0.05098268]
[1768421216781,32.6083119,147.25,147.16,0.05098268]
[1768421216989,32.6083119,147.25,147.14,11.89393207]
[1768421216990,0.037386,147.22,147.19,0.05100025]
[1768421217386,0.037386,147.22,147.14,5.77683207]
[1768421217586,26.5327979,147.22,147.14,5.77683207]
[1768421218382,26.5327979,147.22,147.17,0.04666281]
[1768421218978,0.037386,147.22,147.17,6.01278336]
[1768421219379,14.70086649,147.27,147.17,6.01278336]
[1768421219686,14.70086649,147.27,147.17,5.96612055]
[1768421220185,41.19627839,147.27,147.17,12.08192055]
[1768421220386,0.04576105,147.23,147.21,0.04741385]
[1768421220785,0.04576105,147.23,147.17,5.96612055]
[1768421221178,0.04576105,147.23,147.15,6.1166]
[1768421221379,0.04576105,147.23,147.15,86.4166]
[1768421221777,26.54117295,147.23,147.11,6.26513836]
[1768421221986,26.4954119,147.23,147.11,86.56513836]
[1768421222283,26.4954119,147.21,147.11,80.3]
[1768421222479,26.4954119,147.2,147.11,80.3]
[1768421222886,0.04564075,147.17,147.14,0.05017858]
[1768421223089,0.04564075,147.17,147.11,80.3]
[1768421223685,32.65725265,147.17,147.06,6.1203]
[1768421223883,32.6116119,147.17,147.06,12.56676042]
[1768421224083,0.04694388,147.13,147.1,0.04702706]
[1768421224284,26.4954119,147.17,147.1,0.04702706]
[1768421224688,26.4954119,147.2,147.1,0.04702706]
[1768421224888,26.4954119,147.2,147.09,6.1191]
[1768421225379,0.04932755,147.16,147.13,0.04762318]
[1768421226687,31.77493551,147.25,147.13,0.04762318]
[1768421226992,31.77493551,147.25,147.12,86.88996588]
[1768421227288,26.4954119,147.22,147.12,86.88996588]
[1768421227694,0.04598712,147.18,147.16,0.04330306]
[1768421228681,0.04598712,147.18,147.12,86.88996588]
[1768421228682,0.04598712,147.18,147.12,80.3]
[1768421228992,0.04598712,147.18,147.09,6.75873989]
[1768421229194,26.4954119,147.2,147.1,93.17723989]
[1768421229592,26.4954119,147.2,147.1,80.3]
[1768421229785,0.04698362,147.16,147.14,0.04693969]
[1768421230088,0.04304255,147.16,147.14,0.04693969]
[1768421230294,26.4954119,147.22,147.14,0.04693969]
[1768421230593,26.4954119,147.22,147.12,6.88076201]
[1768421231188,26.4954119,147.22,147.12,12.99866201]
[1768421231389,0.04429935,147.18,147.16,0.04883966]
[1768421233391,6.1136,147.23,147.16,0.04883966]
[1768421233599,26.4954119,147.23,147.14,7.00023437]
[1768421233997,14.70086649,147.27,147.15,7.01476192]
[1768421234198,26.4954119,147.26,147.15,7.01476192]
[1768421234410,0.04346792,147.22,147.19,0.04729483]
[1768421236098,26.53887982,147.22,147.15,85.3]
[1768421236406,32.65287982,147.22,147.12,12.17726976]
[1768421236605,32.6094119,147.22,147.12,7.17726976]
[1768421236906,26.4954119,147.22,147.12,7.17726976]
[1768421237107,0.04904485,147.18,147.12,7.17726976]
[1768421237905,0.04904485,147.18,147.1,6.1188]
[1768421238108,0.04904485,147.18,147.1,86.4188]
[1768421238408,0.04904485,147.18,147.13,0.04930269]
[1768421241116,28.32077756,147.23,147.13,7.62646408]
[1768421241314,28.32077756,147.23,147.13,7.57716139]
[1768421241504,6.1132,147.24,147.13,7.57716139]
[1768421241816,34.43317756,147.26,147.16,7.62975317]
[1768421242313,0.04900046,147.22,147.2,0.04399315]
[1768421243315,28.32077756,147.26,147.2,0.04399315]
[1768421244415,14.70086649,147.27,147.2,7.77712463]
[1768421246016,43.02164405,147.27,147.2,0.04399315]
[1768421246325,28.32077756,147.26,147.2,0.04399315]
[1768421246922,28.32077756,147.24,147.13,7.92778181]
[1768421247222,28.32077756,147.24,147.15,7.92778181]
[1768421247518,28.32077756,147.24,147.16,7.97685168]
[1768421247918,0.04614022,147.21,147.19,0.04476897]
[1768421249119,20.81296649,147.27,147.19,8.02398669]
[1768421249324,3.08321108,147.27,147.2,7.97921772]
[1768421249614,3.08321108,147.27,147.22,8.02716683]
[1768421250020,3.08321108,147.27,147.23,0.05037734]
[1768421251122,31.40398864,147.27,147.2,80.28]
[1768421251520,3.08321108,147.27,147.2,88.4517965]
[1768421252323,0.04504139,147.25,147.22,0.04543861]
[1768421254222,3.08321108,147.27,147.22,0.04543861]
[1768421254429,28.32077756,147.33,147.24,8.26321112]
[1768421254620,34.43007756,147.33,147.21,8.30856633]
[1768421254825,28.32077756,147.33,147.21,8.30856633]
[1768421255026,28.32077756,147.33,147.22,80.28]
[1768421255322,28.32077756,147.33,147.26,0.04910283]
[1768421255917,175.2628,147.41,147.26,0.04910283]
[1768421255918,28.32077756,147.36,147.26,0.04910283]
[1768421256124,28.32077756,147.36,147.3,0.04801778]
[1768421257226,34.42907756,147.36,147.3,0.04801778]
[1768421257418,28.32077756,147.36,147.25,8.35340059]
[1768421257619,28.32077756,147.36,147.23,11.39282361]
[1768421258026,28.32077756,147.33,147.23,19.88028658]
[1768421258525,34.43027756,147.33,147.27,0.04434882]
[1768421258929,0.0437091,147.31,147.27,0.04434882]
[1768421259125,28.36448666,147.31,147.22,80.28]
[1768421259316,28.32077756,147.31,147.22,80.28]
[1768421260228,0.04695289,147.28,147.25,0.0468414]
[1768421261315,0.04695289,147.28,147.21,80.26]
[1768421262527,0.04695289,147.28,147.23,0.04833709]
[1768421263929,0.04695289,147.28,147.23,8.87438841]
[1768421264128,6.1092,147.34,147.24,8.82605132]
[1768421264328,34.42997756,147.34,147.24,8.82605132]
[1768421264728,28.32077756,147.32,147.23,6.1131]
[1768421265121,28.32077756,147.32,147.26,0.04596717]
[1768421265328,0.05174794,147.29,147.26,0.04596717]
[1768421267933,28.32077756,147.4,147.26,10.34427314]
[1768421268134,28.32077756,147.4,147.26,8.93830597]
[1768421268827,0.04385572,147.34,147.32,0.04825176]
[1768421269030,0.04356287,147.34,147.32,0.04377244]
[1768421269236,0.04356287,147.34,147.28,6.1112]
[1768421270135,0.04356287,147.34,147.3,0.04534996]
[1768421271638,34.42807756,147.38,147.3,0.04534996]
[1768421272126,34.42807756,147.38,147.3,9.13547844]
[1768421272732,0.04964466,147.35,147.3,9.13547844]
[1768421273340,0.04964466,147.35,147.3,0.04534996]
[1768421274735,0.04964466,147.35,147.3,9.24696397]
[1768421275633,28.89946085,147.39,147.3,89.46696397]
[1768421275838,28.89946085,147.39,147.31,9.23814086]
[1768421276735,28.89946085,147.39,147.34,0.04703541]
[1768421276937,28.94649626,147.38,147.28,89.54128357]
[1768421277138,28.89946085,147.38,147.28,89.54128357]
[1768421277531,28.89946085,147.38,147.29,9.35697615]
[1768421277731,28.89946085,147.38,147.28,86.3312]
[1768421277936,0.04703541,147.34,147.32,0.04638731]
[1768421278143,0.04703541,147.34,147.28,80.22]
[1768421279038,0.04703541,147.34,147.3,0.04596406]
[1768421280346,28.94649626,147.34,147.23,9.51948748]
[1768421280542,28.89946085,147.34,147.24,80.22]
[1768421281044,28.89946085,147.32,147.24,80.22]
[1768421281237,0.05047264,147.29,147.27,0.04607862]
[1768421283346,0.05047264,147.29,147.23,80.22]
[1768421283551,0.05047264,147.29,147.23,89.92368161]
[1768421284244,0.05047264,147.29,147.25,0.04311774]
[1768421284945,28.94993349,147.29,147.2,9.73819337]
[1768421285146,28.89946085,147.34,147.21,9.78131111]
[1768421285752,28.89946085,147.32,147.21,9.78131111]
[1768421285947,0.0507317,147.28,147.21,9.78131111]
[1768421286144,0.0507317,147.28,147.22,9.86543304]
[1768421286954,0.0507317,147.28,147.24,0.04893761]
[1768421288649,28.89946085,147.33,147.24,10.0157652]
[1768421288951,28.89946085,147.33,147.24,9.96682759]
[1768421289257,28.89946085,147.36,147.25,9.96682759]
[1768421289449,0.04450201,147.32,147.29,0.05114435]
[1768421290446,28.94396286,147.32,147.24,86.3328]
[1768421290748,28.89946085,147.32,147.24,96.4161632]
[1768421291053,28.89946085,147.35,147.25,10.0833632]
[1768421291453,0.05093843,147.31,147.29,0.05003023]
[1768421292545,28.89946085,147.39,147.29,10.14450807]
[1768421292749,28.89946085,147.39,147.29,10.09447784]
[1768421293655,0.04311973,147.35,147.33,0.04722707]
[1768421294450,28.89946085,147.39,147.33,0.04722707]
[1768421296850,0.0504113,147.37,147.33,0.04722707]
[1768421299446,28.94987215,147.37,147.28,6.1112]
[1768421299650,28.89946085,147.37,147.28,6.1112]
[1768421299851,35.00726085,147.37,147.28,6.1112]
[1768421300558,0.04592385,147.34,147.31,0.05121324]
[1768421303452,30.04049649,147.34,147.26,86.332]
[1768421304144,36.14939649,147.34,147.26,80.22]
[1768421304345,36.14939649,147.34,147.29,0.04619324]
[1768421304656,6.1102,147.31,147.22,96.8055585]
[1768421304958,29.99457264,147.31,147.22,90.6920585]
[1768421305555,0.04662856,147.28,147.25,0.04838626]
[1768421306058,30.0412012,147.28,147.22,80.22]
[1768421306261,30.0412012,147.28,147.16,10.54619666]
[1768421306458,29.99457264,147.28,147.17,80.22]
[1768421306659,29.99457264,147.28,147.17,90.79165277]
[1768421307061,0.05051564,147.24,147.21,0.04460296]
[1768421307556,0.05051564,147.24,147.17,90.79165277]
[1768421307749,30.04508828,147.24,147.17,80.22]
[1768421308149,0.05051564,147.24,147.18,10.64141945]
[1768421308655,29.99457264,147.28,147.21,6.1142]
[1768421309056,29.99457264,147.28,147.19,10.66629414]
[1768421309255,29.99457264,147.28,147.19,16.78119414]
[1768421309462,36.10497264,147.31,147.19,10.66629414]
[1768421309758,0.00819372,147.26,147.24,0.04975342]
[1768421309954,29.99457264,147.31,147.24,0.04975342]
[1768421310757,0.04381648,147.29,147.24,0.04975342]
[1768421318264,30.03838912,147.29,147.24,0.04975342]
[1768421319762,36.14938912,147.29,147.2,6.1146]
[1768421319963,29.99457264,147.29,147.2,6.1146]
[1768421320262,29.99457264,147.26,147.18,6.1152]
[1768421320658,0.052158,147.23,147.21,0.05041055]
[1768421323472,0.052158,147.23,147.16,80.24]
[1768421323768,0.052158,147.23,147.18,6.1154]
[1768421324366,0.052158,147.23,147.19,0.05081082]
[1768421327170,0.00240458,147.23,147.19,11.18760226]
[1768421327359,0.00240458,147.23,147.19,13.25490044]
[1768421327765,0.00240458,147.23,147.19,19.37000044]
[1768421327962,0.00240458,147.23,147.19,13.25490044]
[1768421329265,32.06187082,147.28,147.19,13.25490044]
[1768421329567,29.99457264,147.28,147.22,6.1138]
[1768421330473,0.05137175,147.26,147.24,0.05008565]
[1768421331770,2.06729818,147.3,147.24,0.05008565]
[1768421332871,0.04902634,147.28,147.24,0.05008565]
[1768421333571,36.87228133,147.34,147.24,11.31824732]
[1768421333771,36.87228133,147.34,147.24,11.26816167]
[1768421334671,0.05112566,147.3,147.28,0.04337267]
[1768421338172,30.76308133,147.34,147.28,0.04337267]
[1768421339474,0.0505102,147.32,147.28,0.04337267]
[1768421340984,30.76308133,147.37,147.28,11.44263679]
[1768421341187,30.76308133,147.37,147.28,11.39926412]
[1768421341682,36.87118133,147.36,147.28,11.39926412]
[1768421342180,0.04567184,147.33,147.31,0.04918351]
[1768421342779,6.1076,147.38,147.31,0.04918351]
[1768421342981,30.76308133,147.38,147.28,11.39926412]
[1768421343882,6.1081,147.36,147.32,0.04383871]
[1768421344081,30.76308133,147.38,147.32,0.04383871]
[1768421344482,36.87058133,147.38,147.32,0.04383871]
[1768421345584,0.04973,147.36,147.32,0.04383871]
[1768421348189,30.81281133,147.36,147.32,0.04383871]
[1768421348387,30.81281133,147.36,147.28,11.39926412]
[1768421348388,30.81281133,147.36,147.28,6.111]
[1768421349077,30.81281133,147.36,147.28,17.64427358]
[1768421349278,0.04973,147.36,147.31,0.04789169]
[1768421349588,0.04627351,147.35,147.31,0.04789169]
[1768421355390,0.04627351,147.35,147.31,6.15799169]
[1768421356088,0.04627351,147.35,147.31,8.22236027]
[1768421356986,0.04627351,147.35,147.31,13.77580039]
[1768421357387,30.76308133,147.38,147.31,13.77580039]
[1768421358391,0.04661597,147.36,147.31,13.77580039]
[1768421358786,6.1065,147.4,147.32,11.64763188]
[1768421359086,30.76308133,147.42,147.33,13.71200046]
[1768421359287,30.76308133,147.4,147.32,5.0]
[1768421359981,0.05207967,147.37,147.35,0.04422129]
[1768421361394,30.97916701,147.43,147.35,0.04422129]
[1768421361686,33.04353559,147.43,147.34,13.74459271]
[1768421362391,0.02772079,147.4,147.37,0.04786454]
[1768421366894,30.97916701,147.39,147.34,6.1085]
[1768421367090,30.97916701,147.39,147.32,5.0]
[1768421367797,30.97916701,147.39,147.33,6.1092]
[1768421367992,0.05179065,147.37,147.35,0.04736004]
[1768421368596,0.05179065,147.37,147.35,6.15576004]
[1768421369198,2.06436858,147.43,147.35,11.78586059]
[1768421369386,30.97916701,147.45,147.37,6.1075]
[1768421369587,33.04353559,147.45,147.37,17.8599789]
[1768421369896,30.97916701,147.45,147.37,11.7524789]
[1768421370090,0.02379468,147.42,147.4,0.04652362]
[1768421370899,0.02379468,147.42,147.37,80.18]
[1768421371406,31.00296169,147.42,147.35,80.18]
[1768421371902,31.00296169,147.42,147.37,0.0452911]
[1768421372102,2.06436858,147.41,147.37,0.0452911]
[1768421372602,0.02379468,147.42,147.37,0.0452911]
[1768421372903,33.06733027,147.42,147.37,0.0452911]
[1768421373502,2.06436858,147.4,147.37,0.0452911]
[1768421373701,33.04353559,147.4,147.33,80.18]
[1768421374705,0.05116057,147.38,147.35,0.04662835]
[1768421375495,2.06436858,147.42,147.35,11.97122824]
[1768421375695,33.04353559,147.43,147.35,11.97122824]
[1768421376602,0.04797389,147.4,147.35,11.97122824]
[1768421377002,2.06436858,147.44,147.37,11.88658316]
[1768421377406,30.97916701,147.46,147.37,17.99408316]
[1768421377609,30.97916701,147.46,147.37,13.95095174]
[1768421378007,30.97916701,147.46,147.4,0.04512949]
[1768421378618,30.97916701,147.49,147.4,6.15142949]
[1768421378820,33.04353559,147.49,147.43,0.04456234]
[1768421379208,33.04353559,147.48,147.43,0.04456234]
[1768421379412,33.04353559,147.48,147.44,0.04935365]
[1768421379922,30.97916701,147.48,147.44,0.04935365]
[1768421380121,30.97916701,147.48,147.4,11.91241966]
[1768421380122,0.05005025,147.47,147.4,11.91241966]
[1768421381117,31.02921726,147.47,147.42,0.04886449]
[1768421381323,33.09358584,147.47,147.42,0.04886449]
[1768421381716,30.97916701,147.46,147.42,0.04886449]
[1768421381918,30.97916701,147.46,147.39,80.18]
[1768421382329,33.04353559,147.45,147.37,11.98551952]
[1768421382519,33.04353559,147.45,147.38,80.18]
[1768421383026,0.0436345,147.43,147.4,0.05061305]
[1768421383426,0.0436345,147.43,147.37,80.16]
[1768421384420,0.0436345,147.43,147.39,0.04959932]
[1768421384819,33.08717009,147.43,147.37,80.16]
[1768421385132,33.04353559,147.41,147.33,12.03558407]
[1768421385325,30.97916701,147.41,147.34,80.16]
[1768421385827,31.02976008,147.39,147.3,15.32251294]
[1768421386020,30.97916701,147.39,147.31,80.16]
[1768421386415,30.97916701,147.38,147.31,80.16]
[1768421386822,30.97916701,147.36,147.33,0.04599078]
[1768421387026,30.97916701,147.36,147.27,92.2715622]
[1768421387027,37.13931606,147.36,147.27,92.2715622]
[1768421387334,37.08736701,147.36,147.27,92.2715622]
[1768421387633,30.97916701,147.36,147.27,98.3832622]
[1768421388027,0.04505727,147.33,147.3,0.04534074]
[1768421394329,37.08686701,147.37,147.3,0.04534074]
[1768421394529,30.97916701,147.37,147.3,0.04534074]
[1768421395235,0.05088714,147.35,147.3,0.04534074]
[1768421396037,29.73128441,147.35,147.3,0.04534074]
[1768421397433,29.73128441,147.35,147.27,92.42061417]
[1768421397434,32.90446123,147.34,147.27,80.16]
[1768421397637,32.90446123,147.34,147.25,80.2]
[1768421398538,0.04570523,147.31,147.28,0.05071902]
[1768421399132,0.04570523,147.31,147.25,92.5311124]
[1768421399437,0.04570523,147.31,147.26,12.3311124]
[1768421399933,0.04570523,147.31,147.27,80.2]
[1768421400138,0.04570523,147.31,147.28,0.04350326]
[1768421400340,29.7261025,147.31,147.27,80.2]
[1768421400535,29.7261025,147.31,147.25,80.2]
[1768421400736,29.68039727,147.31,147.25,80.2]
[1768421401130,32.90446123,147.31,147.22,12.34347485]
[1768421401436,0.04846667,147.28,147.25,0.04755363]
[1768421402238,0.04846667,147.28,147.23,80.2]
[1768421402639,0.04846667,147.28,147.23,98.78407362]
[1768421403237,0.04846667,147.28,147.24,6.1129]
[1768421403543,29.68039727,147.34,147.25,12.48337978]
[1768421403840,29.68039727,147.37,147.25,12.48337978]
[1768421404244,29.68039727,147.35,147.27,6.1117]
[1768421404433,0.05017745,147.32,147.3,0.04468368]
[1768421404831,29.73057472,147.32,147.25,6.1124]
[1768421405031,29.73057472,147.32,147.26,80.2]
[1768421405239,29.68039727,147.32,147.26,80.2]
[1768421405943,0.04533076,147.3,147.28,0.04446901]
[1768421406143,0.04533076,147.3,147.26,80.2]
[1768421406737,29.68039727,147.35,147.26,92.76477207]
[1768421407132,15.43556396,147.42,147.27,12.56477207]
[1768421407133,29.68039727,147.38,147.27,12.56477207]
[1768421407538,29.68039727,147.35,147.27,12.56477207]
[1768421407843,29.72844992,147.32,147.24,85.22]
[1768421408036,29.72844992,147.32,147.24,96.06900172]
[1768421408741,29.72844992,147.32,147.27,0.0483257]
[1768421409247,29.72844992,147.32,147.24,80.22]
[1768421409739,29.68039727,147.3,147.24,80.22]
[1768421410438,95.0061,147.38,147.26,12.70592782]
[1768421410646,29.68039727,147.39,147.28,12.65686549]
[1768421410840,29.68039727,147.36,147.26,3.22406396]
[1768421411038,29.68039727,147.36,147.28,12.65686549]
[1768421411547,29.68039727,147.36,147.31,0.05090008]
[1768421411846,29.68039727,147.4,147.32,80.22]
[1768421412745,0.04868527,147.37,147.35,0.04318137]
[1768421413044,29.68039727,147.4,147.35,0.04318137]
[1768421413640,29.68039727,147.43,147.35,0.04318137]
[1768421413841,29.68039727,147.43,147.35,15.95324812]
[1768421414045,0.04384017,147.4,147.35,15.95324812]
[1768421415144,0.04384017,147.4,147.36,12.69341034]
[1768421415346,29.68039727,147.46,147.37,15.87363413]
[1768421415549,29.68039727,147.46,147.36,80.22]
[1768421415550,30.86091867,147.53,147.38,12.65919938]
[1768421415846,29.68039727,147.52,147.41,15.88326334]
[1768421416048,29.68039727,147.51,147.41,92.87919938]
[1768421416343,0.04659873,147.47,147.45,0.04661462]
[1768421416542,29.68039727,147.53,147.45,0.04661462]
[1768421416736,29.68039727,147.53,147.42,3.22406396]
[1768421417157,29.68039727,147.51,147.41,80.22]
[1768421417847,29.68039727,147.51,147.45,0.04448195]
[1768421418049,29.68039727,147.49,147.38,80.2]
[1768421418450,29.68039727,147.49,147.38,96.15597439]
[1768421418939,35.78319727,147.49,147.38,96.15597439]
[1768421419142,35.78319727,147.49,147.38,92.93191043]
[1768421420254,29.68039727,147.49,147.38,92.93191043]
[1768421420450,29.68039727,147.49,147.38,96.15597439]
[1768421420746,0.05081145,147.45,147.42,0.05077742]
[1768421426754,6.1027,147.49,147.42,0.05077742]
[1768421427454,37.47407816,147.49,147.42,0.05077742]
[1768421427849,31.37137816,147.49,147.42,0.05077742]
[1768421428058,31.4201285,147.47,147.42,0.05077742]
[1768421428359,31.4201285,147.47,147.38,18.97915011]
[1768421428659,31.37137816,147.47,147.38,18.97915011]
[1768421428958,37.47547816,147.46,147.37,80.16]
[1768421429260,0.04451662,147.43,147.37,80.16]
[1768421429559,31.37137816,147.46,147.38,12.88994002]
[1768421429751,31.37137816,147.46,147.39,0.05105324]
[1768421429950,6.1033,147.48,147.39,12.94099326]
[1768421430148,37.47387816,147.5,147.4,12.88994002]
[1768421430656,37.47387816,147.5,147.44,0.04699069]
[1768421431055,0.04826901,147.48,147.44,0.04699069]
[1768421431458,0.04826901,147.48,147.44,93.10572185]
[1768421432060,0.04826901,147.48,147.44,80.20699069]
[1768421432262,0.04826901,147.48,147.44,0.04699069]
[1768421433363,31.41964717,147.48,147.41,93.06742133]
[1768421433755,31.41964717,147.48,147.41,80.16]
[1768421433756,37.52284717,147.48,147.41,80.16]
[1768421433962,37.52284717,147.48,147.38,12.92397289]
[1768421434162,37.47457816,147.48,147.39,80.16]
[1768421434858,37.47457816,147.48,147.38,19.03107289]
[1768421435059,37.47497816,147.47,147.39,80.16]
[1768421435658,31.37137816,147.43,147.33,31.49911674]
[1768421435859,31.37137816,147.47,147.33,31.49911674]
[1768421436761,0.04962941,147.41,147.35,6.1083]
[1768421436967,31.37137816,147.47,147.39,31.54230834]
[1768421437266,31.37137816,147.47,147.39,31.49911674]
[1768421438368,37.47507816,147.47,147.39,31.49911674]
[1768421439553,0.05198648,147.44,147.42,0.04413115]
[1768421439754,37.47687816,147.43,147.33,31.49911674]
[1768421439964,31.37137816,147.43,147.34,31.49911674]
[1768421440164,94.938,147.48,147.34,31.49911674]
[1768421440165,31.37137816,147.46,147.34,31.49911674]
[1768421440967,0.04929101,147.41,147.36,31.49911674]